[Event "*** SCC Grand Prix: Titled Tuesday Blitz"]
[Site "Chess.com"]
[Date "2020.06.02"]
[Round "2"]
[White "robertofabregas"]
[Black "gm_rashid"]
[Result "1-0"]
[WhiteElo "2059"]
[BlackElo "2352"]
[TimeControl "180+1"]
[EndTime "10:18:51 PDT"]
[Termination "robertofabregas won on time"]

1. c4 {[%clk 0:03:00.9]} 1... e6 {[%clk 0:02:58.8]} 2. Nf3 {[%clk 0:03:01.2]}
2... d5 {[%clk 0:02:59.2]} 3. g3 {[%clk 0:03:00.5]} 3... Nf6 {[%clk 0:02:59]} 4.
Bg2 {[%clk 0:02:59.7]} 4... Be7 {[%clk 0:02:59.3]} 5. O-O {[%clk 0:02:57.3]}
5... O-O {[%clk 0:02:59.7]} 6. d4 {[%clk 0:02:52.5]} 6... c6 {[%clk 0:02:58.8]}
7. Nbd2 {[%clk 0:02:52.2]} 7... a5 {[%clk 0:02:56.3]} 8. b3 {[%clk 0:02:47.5]}
8... a4 {[%clk 0:02:54.2]} 9. Bb2 {[%clk 0:02:42.1]} 9... a3 {[%clk 0:02:53.8]}
10. Bc3 {[%clk 0:02:40.6]} 10... b5 {[%clk 0:02:52.5]} 11. cxb5 {[%clk 0:02:33]}
11... cxb5 {[%clk 0:02:51.6]} 12. b4 {[%clk 0:02:33.1]} 12... Nc6 {[%clk
0:02:43.7]} 13. Qb3 {[%clk 0:02:32.4]} 13... Ra4 {[%clk 0:02:40.2]} 14. Nb1
{[%clk 0:02:16]} 14... Bxb4 {[%clk 0:02:24.2]} 15. Bxb4 {[%clk 0:02:11.2]} 15...
Rxb4 {[%clk 0:02:20]} 16. Qxa3 {[%clk 0:02:09.7]} 16... Ne4 {[%clk 0:02:11.1]}
17. e3 {[%clk 0:02:03.5]} 17... Ra4 {[%clk 0:02:03.5]} 18. Qb3 {[%clk
0:02:00.5]} 18... Qa5 {[%clk 0:02:01.3]} 19. Ne5 {[%clk 0:01:54.7]} 19... Nxe5
{[%clk 0:01:58.4]} 20. dxe5 {[%clk 0:01:55.3]} 20... Bb7 {[%clk 0:01:51.6]} 21.
Rc1 {[%clk 0:01:46.9]} 21... h5 {[%clk 0:01:39]} 22. Bxe4 {[%clk 0:01:45.1]}
22... dxe4 {[%clk 0:01:37.1]} 23. Nc3 {[%clk 0:01:45.4]} 23... Rb4 {[%clk
0:01:33.5]} 24. Qd1 {[%clk 0:01:41.6]} 24... h4 {[%clk 0:01:23]} 25. Kg2 {[%clk
0:01:11.8]} 25... Rc4 {[%clk 0:01:16.8]} 26. Ne2 {[%clk 0:01:06.1]} 26... Rd8
{[%clk 0:01:08.9]} 27. Nd4 {[%clk 0:01:03.4]} 27... Rd5 {[%clk 0:01:06.5]} 28.
Rxc4 {[%clk 0:00:57.4]} 28... bxc4 {[%clk 0:01:04.8]} 29. Qc2 {[%clk 0:00:51.4]}
29... Rxe5 {[%clk 0:00:59.2]} 30. Qxc4 {[%clk 0:00:48.2]} 30... hxg3 {[%clk
0:00:55.9]} 31. hxg3 {[%clk 0:00:47.6]} 31... Rh5 {[%clk 0:00:52.4]} 32. Rb1
{[%clk 0:00:24.1]} 32... g6 {[%clk 0:00:50]} 33. Rxb7 {[%clk 0:00:20.4]} 33...
Qe1 {[%clk 0:00:49.2]} 34. Qf1 {[%clk 0:00:19.5]} 34... Rh2+ {[%clk 0:00:47.3]}
35. Kxh2 {[%clk 0:00:16.6]} 35... Qxf1 {[%clk 0:00:47]} 36. Rb2 {[%clk
0:00:13.4]} 36... Qd3 {[%clk 0:00:45]} 37. Kg2 {[%clk 0:00:12.7]} 37... e5
{[%clk 0:00:43.5]} 38. Nb3 {[%clk 0:00:10.9]} 38... Qc3 {[%clk 0:00:39.9]} 39.
Rd2 {[%clk 0:00:11.1]} 39... f5 {[%clk 0:00:38.3]} 40. Rd8+ {[%clk 0:00:10.8]}
40... Kf7 {[%clk 0:00:35.9]} 41. Rd7+ {[%clk 0:00:11.2]} 41... Ke6 {[%clk
0:00:34.3]} 42. Rd2 {[%clk 0:00:11]} 42... f4 {[%clk 0:00:30]} 43. gxf4 {[%clk
0:00:10.5]} 43... exf4 {[%clk 0:00:28.8]} 44. Rd4 {[%clk 0:00:09.6]} 44... Kf5
{[%clk 0:00:24.9]} 45. Rd5+ {[%clk 0:00:09.2]} 45... Kg4 {[%clk 0:00:24.5]} 46.
Rd4 {[%clk 0:00:07]} 46... f3+ {[%clk 0:00:20.3]} 47. Kh2 {[%clk 0:00:06.6]}
47... Qc2 {[%clk 0:00:20.3]} 48. Nd2 {[%clk 0:00:05.3]} 48... Qc7+ {[%clk
0:00:14.8]} 49. Kg1 {[%clk 0:00:04.6]} 49... Kf5 {[%clk 0:00:11.8]} 50. Rxe4
{[%clk 0:00:04.6]} 50... Qc1+ {[%clk 0:00:11.2]} 51. Kh2 {[%clk 0:00:04.5]}
51... Qxd2 {[%clk 0:00:10.6]} 52. Rf4+ {[%clk 0:00:05.4]} 52... Kg5 {[%clk
0:00:10.2]} 53. Kg3 {[%clk 0:00:06.3]} 53... Qxa2 {[%clk 0:00:07.4]} 54. Kxf3
{[%clk 0:00:07.2]} 54... Qa8+ {[%clk 0:00:04.7]} 55. Kg3 {[%clk 0:00:07.2]}
55... Qh1 {[%clk 0:00:03.2]} 56. Rg4+ {[%clk 0:00:07.1]} 56... Kh5 {[%clk
0:00:03.1]} 57. Rd4 {[%clk 0:00:03.9]} 57... g5 {[%clk 0:00:02.7]} 58. Rd5
{[%clk 0:00:03.8]} 1-0

[Event "*** SCC Grand Prix: Titled Tuesday Blitz"]
[Site "Chess.com"]
[Date "2020.06.02"]
[Round "2"]
[White "MITerryble"]
[Black "ChessicallyInclined"]
[Result "1-0"]
[WhiteElo "2822"]
[BlackElo "2528"]
[TimeControl "180+1"]
[EndTime "10:18:53 PDT"]
[Termination "MITerryble won on time"]

1. d4 {[%clk 0:03:00.9]} 1... Nf6 {[%clk 0:02:58.6]} 2. Nf3 {[%clk 0:03:01.2]}
2... b6 {[%clk 0:02:57.5]} 3. g3 {[%clk 0:03:00.9]} 3... Bb7 {[%clk 0:02:56.8]}
4. c4 {[%clk 0:03:01.3]} 4... e6 {[%clk 0:02:55.9]} 5. Bg2 {[%clk 0:03:01.2]}
5... d5 {[%clk 0:02:54.1]} 6. O-O {[%clk 0:03:00.2]} 6... Nbd7 {[%clk
0:02:54.7]} 7. Ne5 {[%clk 0:02:59.6]} 7... c5 {[%clk 0:02:51.4]} 8. cxd5 {[%clk
0:02:53.9]} 8... exd5 {[%clk 0:02:48.9]} 9. Nc3 {[%clk 0:02:51.4]} 9... cxd4
{[%clk 0:02:40.6]} 10. Nxd7 {[%clk 0:02:42]} 10... Qxd7 {[%clk 0:02:39.7]} 11.
Nb5 {[%clk 0:02:37.4]} 11... Qxb5 {[%clk 0:02:30.9]} 12. Qxd4 {[%clk 0:02:37.4]}
12... Be7 {[%clk 0:02:26.4]} 13. Qe5 {[%clk 0:02:34.1]} 13... Qd7 {[%clk
0:02:24]} 14. Bf4 {[%clk 0:02:15.5]} 14... O-O {[%clk 0:02:19.4]} 15. Rfd1
{[%clk 0:02:09]} 15... Rfe8 {[%clk 0:02:17.6]} 16. Qc3 {[%clk 0:02:05.6]} 16...
Rac8 {[%clk 0:02:12.7]} 17. Qb3 {[%clk 0:02:05.5]} 17... Bd6 {[%clk 0:01:52.7]}
18. Bxd6 {[%clk 0:01:49.7]} 18... Qxd6 {[%clk 0:01:51.5]} 19. e3 {[%clk
0:01:50.6]} 19... Rc7 {[%clk 0:01:43.5]} 20. Qa4 {[%clk 0:01:46.6]} 20... Rec8
{[%clk 0:01:41.9]} 21. Bh3 {[%clk 0:01:43.8]} 21... Rd8 {[%clk 0:01:33.3]} 22.
Rd4 {[%clk 0:01:42.4]} 22... Rc4 {[%clk 0:01:23.4]} 23. Qxa7 {[%clk 0:01:42.5]}
23... Rxd4 {[%clk 0:01:06.5]} 24. exd4 {[%clk 0:01:43.4]} 24... Qc7 {[%clk
0:01:01.5]} 25. Qa3 {[%clk 0:01:40.1]} 25... Bc8 {[%clk 0:00:51.2]} 26. Bg2
{[%clk 0:01:40.1]} 26... Bf5 {[%clk 0:00:50]} 27. Qb4 {[%clk 0:01:39.3]} 27...
Be4 {[%clk 0:00:47.9]} 28. f3 {[%clk 0:01:35.9]} 28... Bg6 {[%clk 0:00:47.8]}
29. a4 {[%clk 0:01:28.8]} 29... h5 {[%clk 0:00:46.5]} 30. Qd2 {[%clk 0:01:13.8]}
30... Re8 {[%clk 0:00:38]} 31. b4 {[%clk 0:01:06.3]} 31... h4 {[%clk 0:00:27.8]}
32. g4 {[%clk 0:01:06.1]} 32... Qe7 {[%clk 0:00:25.7]} 33. a5 {[%clk 0:01:04.4]}
33... bxa5 {[%clk 0:00:25.3]} 34. bxa5 {[%clk 0:01:05.3]} 34... Qa7 {[%clk
0:00:23.4]} 35. a6 {[%clk 0:01:04.2]} 35... Rb8 {[%clk 0:00:23]} 36. Qc3 {[%clk
0:01:00.4]} 36... Rb6 {[%clk 0:00:19]} 37. Qc5 {[%clk 0:00:57]} 37... Nd7 {[%clk
0:00:18.2]} 38. Qxd5 {[%clk 0:00:53.8]} 38... Nf8 {[%clk 0:00:15.3]} 39. Bf1
{[%clk 0:00:50.9]} 39... Ne6 {[%clk 0:00:15.1]} 40. f4 {[%clk 0:00:47.8]} 40...
Rb4 {[%clk 0:00:10.3]} 41. Rd1 {[%clk 0:00:36.4]} 41... Bc2 {[%clk 0:00:08]} 42.
Rd2 {[%clk 0:00:36.1]} 42... Ba4 {[%clk 0:00:05.6]} 43. f5 {[%clk 0:00:34]}
43... Rxd4 {[%clk 0:00:04]} 44. Rxd4 {[%clk 0:00:32.1]} 44... Qxd4+ {[%clk
0:00:04.5]} 45. Qxd4 {[%clk 0:00:32.3]} 45... Nxd4 {[%clk 0:00:05.4]} 46. a7
{[%clk 0:00:31.2]} 46... Bc6 {[%clk 0:00:04.3]} 47. Bg2 {[%clk 0:00:31.7]} 47...
Nb5 {[%clk 0:00:02.2]} 48. Bxc6 {[%clk 0:00:29.3]} 48... Nxa7 {[%clk 0:00:02.5]}
49. Bd7 {[%clk 0:00:30.2]} 49... Kf8 {[%clk 0:00:02.2]} 50. Kg2 {[%clk
0:00:30.7]} 50... Ke7 {[%clk 0:00:02.7]} 51. Ba4 {[%clk 0:00:31.6]} 51... Nc8
{[%clk 0:00:03.1]} 52. Kh3 {[%clk 0:00:32.1]} 52... Nb6 {[%clk 0:00:03.6]} 53.
Bb3 {[%clk 0:00:31.2]} 53... Kf6 {[%clk 0:00:03.8]} 54. Kxh4 {[%clk 0:00:31.5]}
54... g5+ {[%clk 0:00:04.3]} 55. Kh5 {[%clk 0:00:20.6]} 55... Nd7 {[%clk
0:00:04.1]} 56. Bxf7 {[%clk 0:00:20.7]} 56... Kxf7 {[%clk 0:00:03.8]} 57. Kxg5
{[%clk 0:00:21.6]} 57... Nf6 {[%clk 0:00:04.4]} 58. Kf4 {[%clk 0:00:21.1]} 58...
Kg7 {[%clk 0:00:04.4]} 59. g5 {[%clk 0:00:21.5]} 59... Nd7 {[%clk 0:00:04.9]}
60. Ke4 {[%clk 0:00:21.6]} 60... Kf7 {[%clk 0:00:04.2]} 61. h4 {[%clk
0:00:21.6]} 61... Kg7 {[%clk 0:00:04.3]} 62. Kd5 {[%clk 0:00:21.2]} 62... Nf8
{[%clk 0:00:04.3]} 63. Kd6 {[%clk 0:00:21]} 63... Kf7 {[%clk 0:00:04.2]} 64. h5
{[%clk 0:00:19.9]} 64... Kg7 {[%clk 0:00:03]} 65. Ke7 {[%clk 0:00:20.3]} 65...
Nh7 {[%clk 0:00:02.6]} 66. f6+ {[%clk 0:00:19.5]} 66... Kg8 {[%clk 0:00:01.9]}
67. g6 {[%clk 0:00:19]} 67... Nf8 {[%clk 0:00:01.2]} 68. Ke8 {[%clk 0:00:13.6]}
1-0

[Event "*** SCC Grand Prix: Titled Tuesday Blitz"]
[Site "Chess.com"]
[Date "2020.06.02"]
[Round "2"]
[White "peixe64"]
[Black "googlegoom"]
[Result "0-1"]
[WhiteElo "2226"]
[BlackElo "2444"]
[TimeControl "180+1"]
[EndTime "10:18:54 PDT"]
[Termination "googlegoom won by resignation"]

1. d4 {[%clk 0:03:00.9]} 1... d5 {[%clk 0:02:59.8]} 2. c4 {[%clk 0:03:01]} 2...
c6 {[%clk 0:02:59.6]} 3. g3 {[%clk 0:02:58.9]} 3... Nf6 {[%clk 0:02:59.5]} 4.
Nf3 {[%clk 0:02:58]} 4... e6 {[%clk 0:03:00]} 5. Bg2 {[%clk 0:02:56.2]} 5... Be7
{[%clk 0:03:00.2]} 6. O-O {[%clk 0:02:56]} 6... O-O {[%clk 0:02:58.7]} 7. Qc2
{[%clk 0:02:54.7]} 7... b6 {[%clk 0:02:59.1]} 8. b3 {[%clk 0:02:51.7]} 8... Bb7
{[%clk 0:02:58.9]} 9. Bb2 {[%clk 0:02:51.9]} 9... Nbd7 {[%clk 0:02:59]} 10. Nbd2
{[%clk 0:02:51.4]} 10... Rc8 {[%clk 0:02:58.7]} 11. e4 {[%clk 0:02:45]} 11...
Qc7 {[%clk 0:02:51.1]} 12. e5 {[%clk 0:02:42.4]} 12... Ne8 {[%clk 0:02:50.9]}
13. Rac1 {[%clk 0:02:26.7]} 13... Qb8 {[%clk 0:02:50.4]} 14. cxd5 {[%clk
0:02:21]} 14... cxd5 {[%clk 0:02:49]} 15. Qd3 {[%clk 0:02:18.9]} 15... Nc7
{[%clk 0:02:44.8]} 16. Rfd1 {[%clk 0:02:15.5]} 16... Ba6 {[%clk 0:02:39.4]} 17.
Qe3 {[%clk 0:02:15.9]} 17... Nb5 {[%clk 0:02:32]} 18. h4 {[%clk 0:02:11.3]}
18... Rxc1 {[%clk 0:02:29.3]} 19. Rxc1 {[%clk 0:02:11.2]} 19... Rc8 {[%clk
0:02:29.7]} 20. h5 {[%clk 0:01:16]} 20... Rxc1+ {[%clk 0:02:26.9]} 21. Bxc1
{[%clk 0:01:16.1]} 21... Qc8 {[%clk 0:02:26.5]} 22. Nf1 {[%clk 0:01:12.4]} 22...
Qc2 {[%clk 0:02:24.2]} 23. Qd2 {[%clk 0:00:58.6]} 23... Qb1 {[%clk 0:01:59.6]}
24. a4 {[%clk 0:00:47]} 24... Na3 {[%clk 0:01:48.3]} 25. Qc3 {[%clk 0:00:37.1]}
25... Nc2 {[%clk 0:01:33.3]} 26. Bf4 {[%clk 0:00:24.7]} 26... Nf8 {[%clk
0:00:46.3]} 27. Qc7 {[%clk 0:00:22.7]} 27... Ba3 {[%clk 0:00:35.4]} 28. Ng5
{[%clk 0:00:20.5]} 28... Nxd4 {[%clk 0:00:20.9]} 29. Qxf7+ {[%clk 0:00:20.7]}
29... Kh8 {[%clk 0:00:21.3]} 30. h6 {[%clk 0:00:20.2]} 30... gxh6 {[%clk
0:00:19.1]} 31. Qf6+ {[%clk 0:00:20.7]} 31... Kg8 {[%clk 0:00:19.3]} 32. Qf7+
{[%clk 0:00:21.3]} 32... Kh8 {[%clk 0:00:19.6]} 33. Qf6+ {[%clk 0:00:21.9]}
33... Kg8 {[%clk 0:00:20.2]} 34. Nf7 {[%clk 0:00:21.2]} 34... Nf5 {[%clk
0:00:08.7]} 35. g4 {[%clk 0:00:16.7]} 35... Bxf1 {[%clk 0:00:05.1]} 36. Bxf1
{[%clk 0:00:15.5]} 36... Be7 {[%clk 0:00:05.1]} 37. Nxh6+ {[%clk 0:00:14.7]}
37... Nxh6 {[%clk 0:00:03.5]} 38. Qxe7 {[%clk 0:00:15]} 38... Nf7 {[%clk
0:00:02.7]} 39. Qf6 {[%clk 0:00:14.2]} 39... Qg6 {[%clk 0:00:02.9]} 40. Qxg6+
{[%clk 0:00:14.5]} 40... Nxg6 {[%clk 0:00:03.6]} 41. Bg3 {[%clk 0:00:14.4]}
41... Ngxe5 {[%clk 0:00:04.4]} 42. Ba6 {[%clk 0:00:14.2]} 42... Nc6 {[%clk
0:00:04.7]} 43. f4 {[%clk 0:00:14]} 43... e5 {[%clk 0:00:05.3]} 44. fxe5 {[%clk
0:00:13.4]} 44... Nfxe5 {[%clk 0:00:06.2]} 45. g5 {[%clk 0:00:13.3]} 45... Kf7
{[%clk 0:00:06.8]} 46. Be2 {[%clk 0:00:13.4]} 46... Kg6 {[%clk 0:00:07]} 47. Bf4
{[%clk 0:00:08.4]} 47... Nf7 {[%clk 0:00:06.7]} 48. Bf3 {[%clk 0:00:07.6]} 48...
Nxg5 {[%clk 0:00:06]} 49. Bxd5 {[%clk 0:00:07.6]} 49... Ne7 {[%clk 0:00:06.1]}
50. Bb7 {[%clk 0:00:07.7]} 50... Kf5 {[%clk 0:00:04.8]} 51. Bd2 {[%clk
0:00:07.2]} 51... Ne4 {[%clk 0:00:05]} 52. Be1 {[%clk 0:00:07.6]} 52... Nc5
{[%clk 0:00:05.3]} 53. Bf3 {[%clk 0:00:07.2]} 53... Nxb3 {[%clk 0:00:05.5]} 54.
Bc3 {[%clk 0:00:06.2]} 54... Nc5 {[%clk 0:00:05.3]} 55. Be2 {[%clk 0:00:06.4]}
55... Ng6 {[%clk 0:00:05.3]} 56. Kf2 {[%clk 0:00:06.5]} 56... Nxa4 {[%clk
0:00:04.9]} 57. Bb4 {[%clk 0:00:06.7]} 57... Nc5 {[%clk 0:00:05.5]} 58. Bc3
{[%clk 0:00:06.3]} 58... Ne4+ {[%clk 0:00:05.9]} 59. Ke3 {[%clk 0:00:06.9]}
59... Nxc3 {[%clk 0:00:06.8]} 60. Bd3+ {[%clk 0:00:07.1]} 60... Kf6 {[%clk
0:00:06.6]} 61. Kd4 {[%clk 0:00:07]} 61... Na4 {[%clk 0:00:07.5]} 62. Kc4 {[%clk
0:00:07.4]} 62... Nc5 {[%clk 0:00:08.4]} 63. Kd4 {[%clk 0:00:07.6]} 63... h5
{[%clk 0:00:08.9]} 64. Bf1 {[%clk 0:00:07.6]} 64... h4 {[%clk 0:00:09.5]} 65.
Bh3 {[%clk 0:00:08.2]} 65... Kg5 {[%clk 0:00:10.2]} 66. Bc8 {[%clk 0:00:08.4]}
66... Nf4 {[%clk 0:00:11.1]} 67. Bh3 {[%clk 0:00:08.6]} 67... Nxh3 {[%clk
0:00:11.1]} 0-1

[Event "*** SCC Grand Prix: Titled Tuesday Blitz"]
[Site "Chess.com"]
[Date "2020.06.02"]
[Round "2"]
[White "Ginger_GM"]
[Black "nihalsarin"]
[Result "0-1"]
[WhiteElo "2588"]
[BlackElo "3015"]
[TimeControl "180+1"]
[EndTime "10:18:59 PDT"]
[Termination "nihalsarin won on time"]

1. d4 {[%clk 0:02:47.4]} 1... c5 {[%clk 0:03:00.2]} 2. d5 {[%clk 0:02:47.1]}
2... e5 {[%clk 0:03:00.5]} 3. Nc3 {[%clk 0:02:46.9]} 3... d6 {[%clk 0:02:59.8]}
4. e4 {[%clk 0:02:47.2]} 4... Be7 {[%clk 0:03:00]} 5. Bb5+ {[%clk 0:02:45.5]}
5... Nd7 {[%clk 0:02:59.9]} 6. a4 {[%clk 0:02:45.3]} 6... Bg5 {[%clk 0:03:00.1]}
7. Nf3 {[%clk 0:02:44.7]} 7... Bxc1 {[%clk 0:02:57.7]} 8. Rxc1 {[%clk
0:02:45.1]} 8... Ne7 {[%clk 0:02:54.1]} 9. Nd2 {[%clk 0:02:44.3]} 9... O-O
{[%clk 0:02:54.1]} 10. O-O {[%clk 0:02:41.5]} 10... Ng6 {[%clk 0:02:51.7]} 11.
g3 {[%clk 0:02:39.5]} 11... a6 {[%clk 0:02:46.6]} 12. Bd3 {[%clk 0:02:37.6]}
12... Rb8 {[%clk 0:02:43.7]} 13. Nc4 {[%clk 0:02:31.3]} 13... Nb6 {[%clk
0:02:43.3]} 14. Ne3 {[%clk 0:02:30.1]} 14... Bh3 {[%clk 0:02:37.9]} 15. Re1
{[%clk 0:02:30.1]} 15... Bd7 {[%clk 0:02:38.1]} 16. b3 {[%clk 0:02:28.2]} 16...
Nc8 {[%clk 0:02:38.2]} 17. Qh5 {[%clk 0:02:17.2]} 17... Nce7 {[%clk 0:02:06]}
18. Nf5 {[%clk 0:02:10.7]} 18... Be8 {[%clk 0:01:44]} 19. Nd1 {[%clk 0:02:06.1]}
19... f6 {[%clk 0:01:36]} 20. Qg4 {[%clk 0:02:03.7]} 20... Nxf5 {[%clk
0:01:33.3]} 21. Qxf5 {[%clk 0:01:50.6]} 21... Ne7 {[%clk 0:01:26.8]} 22. Qf3
{[%clk 0:01:46]} 22... Bg6 {[%clk 0:01:07.3]} 23. Ne3 {[%clk 0:01:43.4]} 23...
Qd7 {[%clk 0:01:07.8]} 24. g4 {[%clk 0:01:34.9]} 24... Bf7 {[%clk 0:01:04.7]}
25. a5 {[%clk 0:01:29.8]} 25... Ng6 {[%clk 0:01:03.1]} 26. Ng2 {[%clk
0:01:28.4]} 26... Qd8 {[%clk 0:00:58.5]} 27. Ra1 {[%clk 0:01:27.8]} 27... Be8
{[%clk 0:00:57.1]} 28. h4 {[%clk 0:01:26.9]} 28... h6 {[%clk 0:00:53]} 29. h5
{[%clk 0:01:26.7]} 29... Nh8 {[%clk 0:00:52.8]} 30. Ne3 {[%clk 0:01:24.2]} 30...
Nf7 {[%clk 0:00:52.2]} 31. Nf5 {[%clk 0:01:24.5]} 31... Ng5 {[%clk 0:00:52.4]}
32. Qg3 {[%clk 0:01:24.6]} 32... Qc7 {[%clk 0:00:44.4]} 33. Kh2 {[%clk
0:01:18.7]} 33... Bd7 {[%clk 0:00:44.4]} 34. Nh4 {[%clk 0:01:17.6]} 34... Rfe8
{[%clk 0:00:40.2]} 35. Ng6 {[%clk 0:01:13.5]} 35... Qc8 {[%clk 0:00:40.6]} 36.
Rg1 {[%clk 0:01:12.1]} 36... Qc7 {[%clk 0:00:40.3]} 37. f3 {[%clk 0:00:58.2]}
37... Bb5 {[%clk 0:00:38.1]} 38. Bxb5 {[%clk 0:00:54.7]} 38... axb5 {[%clk
0:00:39]} 39. Nh4 {[%clk 0:00:52.6]} 39... Ra8 {[%clk 0:00:37.8]} 40. Qe1 {[%clk
0:00:49.4]} 40... b4 {[%clk 0:00:34.1]} 41. Kg3 {[%clk 0:00:28.9]} 41... Rxa5
{[%clk 0:00:32.9]} 42. Rxa5 {[%clk 0:00:28.4]} 42... Qxa5 {[%clk 0:00:33.8]} 43.
Qa1 {[%clk 0:00:29]} 43... Qa3 {[%clk 0:00:20.7]} 44. Nf5 {[%clk 0:00:26.6]}
44... Nf7 {[%clk 0:00:20.9]} 45. Qd1 {[%clk 0:00:20.3]} 45... Ra8 {[%clk
0:00:20.8]} 46. Qd3 {[%clk 0:00:20.1]} 46... Qa6 {[%clk 0:00:20.8]} 47. Qd2
{[%clk 0:00:17.4]} 47... Kf8 {[%clk 0:00:20.7]} 48. Ne3 {[%clk 0:00:17.6]} 48...
b5 {[%clk 0:00:19.9]} 49. Nf5 {[%clk 0:00:17.8]} 49... Qa2 {[%clk 0:00:19.6]}
50. Rf1 {[%clk 0:00:17]} 50... Qb2 {[%clk 0:00:19.7]} 51. f4 {[%clk 0:00:15.6]}
51... Ra2 {[%clk 0:00:18.7]} 52. fxe5 {[%clk 0:00:14.4]} 52... Qxe5+ {[%clk
0:00:19.6]} 53. Kh3 {[%clk 0:00:13.5]} 53... Ng5+ {[%clk 0:00:17.7]} 54. Kh4
{[%clk 0:00:10.7]} 54... Nxe4 {[%clk 0:00:17.8]} 55. Qe2 {[%clk 0:00:06.6]}
55... Kf7 {[%clk 0:00:14]} 56. Re1 {[%clk 0:00:06.9]} 56... Qf4 {[%clk
0:00:09.1]} 57. Rh1 {[%clk 0:00:03.9]} 57... Kf8 {[%clk 0:00:08.4]} 58. Qxe4
{[%clk 0:00:04.1]} 58... Qxe4 {[%clk 0:00:08.3]} 0-1

[Event "*** SCC Grand Prix: Titled Tuesday Blitz"]
[Site "Chess.com"]
[Date "2020.06.02"]
[Round "2"]
[White "dalmatinac101"]
[Black "JiaHaoxiang"]
[Result "0-1"]
[WhiteElo "2852"]
[BlackElo "2568"]
[TimeControl "180+1"]
[EndTime "10:19:04 PDT"]
[Termination "JiaHaoxiang won on time"]

1. g3 {[%clk 0:03:00.3]} 1... g6 {[%clk 0:02:58.6]} 2. Bg2 {[%clk 0:03:00.1]}
2... Bg7 {[%clk 0:02:59.3]} 3. c4 {[%clk 0:03:00.4]} 3... c6 {[%clk 0:02:58.4]}
4. e4 {[%clk 0:02:58.9]} 4... d6 {[%clk 0:02:55.9]} 5. Nc3 {[%clk 0:02:58.3]}
5... Nf6 {[%clk 0:02:56.3]} 6. Nge2 {[%clk 0:02:57.5]} 6... O-O {[%clk
0:02:56.8]} 7. O-O {[%clk 0:02:58.1]} 7... e5 {[%clk 0:02:54.1]} 8. d3 {[%clk
0:02:58.2]} 8... Nbd7 {[%clk 0:02:44.3]} 9. h3 {[%clk 0:02:58.3]} 9... a5 {[%clk
0:02:43.4]} 10. Be3 {[%clk 0:02:58.4]} 10... Nc5 {[%clk 0:02:40.5]} 11. a3
{[%clk 0:02:58.4]} 11... Nfd7 {[%clk 0:02:36.6]} 12. f4 {[%clk 0:02:52.2]} 12...
exf4 {[%clk 0:02:32.6]} 13. gxf4 {[%clk 0:02:51.9]} 13... f5 {[%clk 0:02:26.9]}
14. e5 {[%clk 0:02:47.4]} 14... dxe5 {[%clk 0:02:22.7]} 15. fxe5 {[%clk
0:02:48.3]} 15... Ne6 {[%clk 0:01:42.5]} 16. d4 {[%clk 0:02:47.8]} 16... Re8
{[%clk 0:01:37.3]} 17. d5 {[%clk 0:02:43.4]} 17... cxd5 {[%clk 0:01:36.7]} 18.
cxd5 {[%clk 0:02:44.3]} 18... Nef8 {[%clk 0:01:36.7]} 19. e6 {[%clk 0:02:43.9]}
19... Ne5 {[%clk 0:01:35.3]} 20. Bd4 {[%clk 0:02:37.7]} 20... Qg5 {[%clk
0:01:28.5]} 21. Kh1 {[%clk 0:02:31.5]} 21... Nc4 {[%clk 0:01:17.9]} 22. Bxg7
{[%clk 0:02:29.1]} 22... Ne3 {[%clk 0:01:17.8]} 23. Nf4 {[%clk 0:02:13.9]} 23...
Nxd1 {[%clk 0:01:17.4]} 24. Bd4 {[%clk 0:01:35.8]} 24... Nxc3 {[%clk 0:01:12.9]}
25. bxc3 {[%clk 0:01:33.4]} 25... Ra6 {[%clk 0:01:03.1]} 26. Rab1 {[%clk
0:01:26.9]} 26... Nxe6 {[%clk 0:01:01.8]} 27. dxe6 {[%clk 0:01:26.5]} 27...
Raxe6 {[%clk 0:01:01.2]} 28. Nxe6 {[%clk 0:01:20.8]} 28... Rxe6 {[%clk
0:00:59.8]} 29. Bd5 {[%clk 0:01:16.9]} 29... Qh4 {[%clk 0:00:56.1]} 30. Rf3
{[%clk 0:01:00.8]} 30... Kf8 {[%clk 0:00:56.1]} 31. Bc5+ {[%clk 0:00:51.4]}
31... Ke8 {[%clk 0:00:55.7]} 32. Bxe6 {[%clk 0:00:43.2]} 32... Qe4 {[%clk
0:00:49.3]} 33. Bxc8 {[%clk 0:00:10]} 33... Qxf3+ {[%clk 0:00:49.3]} 34. Kh2
{[%clk 0:00:08.5]} 34... Qf4+ {[%clk 0:00:49.6]} 35. Kg1 {[%clk 0:00:08.7]}
35... Qg3+ {[%clk 0:00:49.8]} 36. Kh1 {[%clk 0:00:09.2]} 36... Qxh3+ {[%clk
0:00:50.2]} 37. Kg1 {[%clk 0:00:09.6]} 37... Qg3+ {[%clk 0:00:38.6]} 38. Kh1
{[%clk 0:00:09.6]} 38... Qf3+ {[%clk 0:00:34]} 39. Kg1 {[%clk 0:00:09.6]} 39...
Qc6 {[%clk 0:00:29.9]} 40. Re1+ {[%clk 0:00:03.7]} 40... Kd8 {[%clk 0:00:30.2]}
41. Bd4 {[%clk 0:00:03.6]} 41... Kxc8 {[%clk 0:00:29.8]} 42. Re5 {[%clk
0:00:04.5]} 42... Qf3 {[%clk 0:00:27.4]} 43. Rxa5 {[%clk 0:00:03.4]} 43... g5
{[%clk 0:00:19.4]} 44. Ra8+ {[%clk 0:00:03.2]} 44... Kd7 {[%clk 0:00:19.3]} 45.
Rg8 {[%clk 0:00:03.9]} 45... g4 {[%clk 0:00:19.4]} 46. Rg7+ {[%clk 0:00:04.3]}
46... Kc6 {[%clk 0:00:19.8]} 47. Rxh7 {[%clk 0:00:04.8]} 47... g3 {[%clk
0:00:19.8]} 48. Rg7 {[%clk 0:00:04.3]} 48... f4 {[%clk 0:00:20.1]} 49. Rf7
{[%clk 0:00:03.7]} 49... Qe4 {[%clk 0:00:18.9]} 50. Rf6+ {[%clk 0:00:03.3]}
50... Kb5 {[%clk 0:00:18.6]} 51. Rb6+ {[%clk 0:00:02.7]} 51... Ka5 {[%clk
0:00:19.1]} 52. Rb4 {[%clk 0:00:02.1]} 52... Qe1+ {[%clk 0:00:16.8]} 53. Kg2
{[%clk 0:00:02.4]} 53... Qe2+ {[%clk 0:00:17]} 54. Kh3 {[%clk 0:00:02.9]} 54...
Qh5+ {[%clk 0:00:16.5]} 55. Kg2 {[%clk 0:00:03.2]} 55... Qd5+ {[%clk 0:00:15.1]}
56. Kh3 {[%clk 0:00:03.7]} 56... b5 {[%clk 0:00:13]} 57. Rb2 {[%clk 0:00:02.6]}
57... Qh1+ {[%clk 0:00:12.5]} 58. Kg4 {[%clk 0:00:02.9]} 58... Qe4 {[%clk
0:00:12.4]} 59. Kg5 {[%clk 0:00:03]} 59... f3 {[%clk 0:00:12.1]} 60. a4 {[%clk
0:00:03.2]} 60... Kxa4 {[%clk 0:00:11.3]} 61. Rb4+ {[%clk 0:00:03.1]} 61... Ka3
{[%clk 0:00:11.8]} 62. Bc5 {[%clk 0:00:04]} 62... Qe5+ {[%clk 0:00:11.3]} 63.
Kg4 {[%clk 0:00:04.9]} 63... Qxc5 {[%clk 0:00:11.4]} 64. Kxf3 {[%clk 0:00:05.8]}
64... Qxc3+ {[%clk 0:00:11.7]} 65. Kg2 {[%clk 0:00:06.7]} 65... Qxb4 {[%clk
0:00:12.2]} 0-1